Cogmind - Beta 16.1 @@@ ROGUE MODE // 2026.02.12 @ 19:05:40 Player: beans Result: Destroyed by Y-64 Sentinel with Wave Gun Performance ------------- Evolutions (6) 3000 Regions Visited (20) 4000 Robots Destroyed (187) 935 Value Destroyed (6825) 6825 Prototype IDs (15) 300 Alien Tech Used (0) 0 Bonus (2507) 2507 TOTAL SCORE: 17567 Bonus ------- High Alert Combat Kills 536 Follower Combat Kills 1765 Entered DSFs 500 Registered with UFD 300 Met Optimus in HQ 500 Friendly Fire -1094 Cogmind --------- Core Integrity 0/1150 Matter 276/300 Energy 99/100 System Corruption 35% Temperature Cool (11) Movement Hovering (60) Location -4/Upper Caves Parts ------- > --- POWER (2) -------- (None) > --- PROPULSION (3) --- Antigrav System Antigrav System > --- UTILITY (8) ------ Graphene Brace > --- WEAPON (6) ------- Vibroblade > --- INVENTORY (5) ---- 0b10 Decoder Chip [Looter] Wave Gun Wave Gun Enhanced Quantum Rifle CPS Tube (2) Peak State ------------ > --- POWER ------------ Neutrino Core Antimatter Reactor > --- PROPULSION ------- Myomer Leg Myomer Leg Advanced VSS Leg > --- UTILITY ---------- Advanced Heat Sink Advanced Heat Sink Improved Cooling System Improved Cooling System Improved Target Analyzer Advanced Weapon Cycler Graphene Brace System Guard > --- WEAPON ----------- Plasma Rifle Plasma Rifle Wave Gun Phase Gun Phase Gun Vibroblade > --- INVENTORY -------- 0b10 Decoder Chip [Looter] Enhanced Quantum Rifle Enhanced Quantum Rifle Railgun CPS Tube [Rating: 118] Favorites ----------- Power Antimatter Reactor Engine Backup Power III Power Core Neutrino Core Reactor Antimatter Reactor Propulsion Advanced VSS Leg Treads Heavy Treads Leg Advanced VSS Leg Hover Unit Gravmag System Utility Improved Heat Sink Device Improved Heat Sink Storage Compact Matter Pod Processor Advanced Targeting Computer Hackware Advanced Hacking Suite Protection Improved Medium Armor Plating Weapon Heavy Battle Rifle Energy Gun Precision Shock Rifle Energy Cannon Phase Cannon Ballistic Gun Heavy Battle Rifle Ballistic Cannon Gauss Cannon Launcher Rocket Launcher Special Weapon Improved Remote Datajack Slashing Weapon Vibroblade Build | -11 -10 -10 -10 -9 -8 -7 -7 -7 -7 -7 -7 -5 -5 -5 -5 -4 -4 -4 -4 -4 ------- Run | Yrd Mat Min Exi Min Mat Fac Was Fac Sto Rec Scr Fac Was Fac DSF Fac Was Fac Upp Upp Slots Evolved 12 | . . . . . 4 2 . . . . . 4 . . . 2 . . . . Power 1 | . . . . . . . . . . . . 1 . . . . . . . . Propulsion 1 | . . . . . . . . . . . . 1 . . . . . . . . Utility 6 | . . . . . 1 2 . . . . . 1 . . . 2 . . . . Weapon 4 | . . . . . 3 . . . . . . 1 . . . . . . . . Parts Attached 139 | 3 . 3 . 2 27 4 13 6 1 . . 10 21 3 6 13 . 10 17 . Power 10 | . . . . . 2 . 2 1 . . . . 2 . . 2 . 1 . . Engine 2 | . . . . . 2 . . . . . . . . . . . . . . . Core 3 | . . . . . . . 1 1 . . . . . . . . . 1 . . Reactor 5 | . . . . . . . 1 . . . . . 2 . . 2 . . . . Propulsion 25 | 2 . 1 . . 5 . 1 . . . . . 5 3 3 . . 3 2 . Treads 5 | 2 . . . . . . 1 . . . . . 2 . . . . . . . Leg 14 | . . . . . 2 . . . . . . . 3 3 3 . . 3 . . Wheel . | . . . . . . . . . . . . . . . . . . . . . Hover 6 | . . 1 . . 3 . . . . . . . . . . . . . 2 . Flight . | . . . . . . . . . . . . . . . . . . . . . Utility 37 | . . 1 . . 5 1 2 2 1 . . 1 6 . 3 6 . 1 8 . Device 17 | . . . . . 3 1 . 1 . . . . 3 . 3 3 . 1 2 . Storage 1 | . . . . . . . . . . . . . . . . . . . 1 . Processor 5 | . . 1 . . . . . 1 . . . . 1 . . 2 . . . . Hackware 1 | . . . . . . . . . . . . 1 . . . . . . . . Protection 13 | . . . . . 2 . 2 . 1 . . . 2 . . 1 . . 5 . Artifact . | . . . . . . . . . . . . . . . . . . . . . Weapon 67 | 1 . 1 . 2 15 3 8 3 . . . 9 8 . . 5 . 5 7 . Energy Gun 15 | . . . . . 1 3 . . . . . . 1 . . 1 . 5 4 . Energy Cannon 3 | . . . . . 2 . . . . . . 1 . . . . . . . . Ballistic Gun 29 | 1 . . . 2 12 . 4 . . . . 3 4 . . 1 . . 2 . Ballistic Cannon 14 | . . . . . . . 3 3 . . . 4 2 . . 1 . . 1 . Launcher 2 | . . 1 . . . . . . . . . . . . . 1 . . . . Special Weapon 3 | . . . . . . . . . . . . 1 1 . . 1 . . . . Impact Weapon . | . . . . . . . . . . . . . . . . . . . . . Slashing Weapon 1 | . . . . . . . 1 . . . . . . . . . . . . . Piercing Weapon . | . . . . . . . . . . . . . . . . . . . . . Special Melee Weapon . | . . . . . . . . . . . . . . . . . . . . . Unidentified Prototypes 9 | . . . . . 1 1 1 1 . . . . 1 . . 4 . . . . Corrupted Parts 1 | . . . . . . . . . . . . . . . . . . 1 . . System Corruption 2 | . . . . . . . . . . . . . . . . . . 2 . . Parts Lost 69 | . . 1 . 2 12 . 1 . . . . 9 1 . 2 8 . 6 27 . Power 8 | . . . . . 1 . 1 . . . . 1 . . . 2 . 1 2 . Propulsion 9 | . . . . 1 2 . . . . . . 1 . . . . . 2 3 . Utility 26 | . . . . . 2 . . . . . . 5 1 . 2 2 . . 14 . Weapon 26 | . . 1 . 1 7 . . . . . . 2 . . . 4 . 3 8 . Highest Loss Streak 9 | . . 1 . 2 4 . 1 . . . . 9 1 . 2 6 . 2 9 . To Critical Strikes . | . . . . . . . . . . . . . . . . . . . . . Average Backups 4 | . . . 1 1 2 4 5 5 5 5 4 5 4 5 5 4 4 5 4 5 Power . | . . . . . . 2 1 . . . . . . . . . . . . . Propulsion . | . . . . . . 1 1 1 1 1 . . . 1 1 . . . . . Utility 1 | . . . 1 1 1 1 1 1 1 1 1 2 1 1 1 1 1 1 1 1 Weapon 1 | . . . . . . . 1 2 3 3 2 2 1 1 2 2 2 3 2 3 Tool/Special . | . . . . . . . . . . . . . . . . . . . . . Unused Backups 6 | . . . . . . . 1 1 . . 1 . . . . . . . 1 2 Power 2 | . . . . . . . 1 1 . . . . . . . . . . . . Propulsion . | . . . . . . . . . . . . . . . . . . . . . Utility 1 | . . . . . . . . . . . . . . . . . . . . 1 Weapon 3 | . . . . . . . . . . . 1 . . . . . . . 1 1 Tool/Special . | . . . . . . . . . . . . . . . . . . . . . Average Slot Usage (%) 77 | . 42 36 36 43 76 87 89 91 92 92 92 75 54 90 86 95 78 86 52 21 Engine 1 | . . . . . 6 7 . . . . . . 3 . . . . 1 . . Reactor 5 | . . . . . . . 6 6 7 7 7 4 4 11 11 9 5 5 2 . Treads 3 | . 28 7 . . . . 2 7 7 7 7 4 2 4 . . . . . . Leg 5 | . . . . . 3 15 9 . . . . . 5 9 17 15 15 14 5 . Hover 1 | . . 4 14 8 9 . . . . . . . . . . . . . . 10 Device 18 | . . . . . 10 18 19 18 23 23 23 16 8 17 19 29 26 29 15 5 Processor 6 | . . 10 14 14 9 7 7 7 7 7 7 5 1 . . 5 10 10 7 . Protection 4 | . . . . . 1 . 6 10 7 7 7 4 7 11 1 3 . . 1 . Energy Gun 2 | . . . . . . 16 11 . . . . . 1 . . . . 9 11 . Ballistic Gun 14 | . 14 4 . 14 34 21 18 13 15 15 15 7 10 23 22 20 10 6 2 . Ballistic Cannon 10 | . . . . . . . 4 22 23 23 23 21 6 11 11 8 5 . . . Peak Build Rating 118 | 3 3 4 4 5 32 40 49 57 59 59 60 82 96 100 100 114 100 114 118 29 Average Rating 60 | 2 3 3 3 4 22 35 43 52 58 59 59 73 58 97 89 105 97 102 61 29 On Entrance 47 | . 3 3 4 4 4 27 40 47 57 59 59 60 6 96 100 95 83 100 112 29 Avg Prop Armor Cover (%) 13 | . . . . . . . . . . . . . . . 4 . . . . 15 Naked Turns 69 | . . . . . . . . . . . . . 69 . . . . . . . Heaviest Build 98 | 2 2 4 4 4 27 25 45 56 58 58 58 77 98 98 98 82 52 65 69 5 Greatest Support 93 | 40 40 40 6 6 30 30 70 70 70 70 70 70 93 93 69 54 54 68 68 11 Greatest Overweight (x) 8 | . . 1 . 1 2 . 1 . . . . 1 1 4 2 1 . 1 8 . Average Overweight (x) . | . . . . . . . . . . . . . . 1 1 . . . 1 . Largest Inventory Capacity 5 | 5 5 5 5 5 5 5 5 5 5 5 5 5 5 5 5 5 5 5 5 5 Average Capacity 5 | 5 5 5 5 5 5 5 5 5 5 5 5 5 5 5 5 5 5 5 5 5 Most Carried 5 | 3 . 3 2 3 5 5 5 5 5 5 5 5 5 5 5 5 5 5 5 5 Average Carried 4 | . . . 1 1 2 4 4 4 5 5 4 4 4 4 5 4 4 4 4 5 Final Capacity 5 | 5 5 5 5 5 5 5 5 5 5 5 5 5 5 5 5 5 5 5 5 5 Final Carried 5 | . . 1 1 1 4 5 5 5 5 5 5 5 5 5 5 5 5 5 5 5 Class Distribution -------------------- 17% | Derelict-Executioner 17% | Mutant 13% | Commander-Tank 11% | Tank 11% | Scavenger-Gunner 10% | Scavenger-Executioner 7% | Derelict-Tank 4% | Gunner 3% | Commander-Executioner Dominant Class ---------------- Mutant | -10/Materials Mutant | -10/Mines Mutant | -10/Exiles Mutant | -9/Mines Gunner | -8/Materials Scavenger-Gunner | -7/Factory Scavenger-Gunner | -7/Waste Derelict-Tank | -7/Factory Tank | -7/Storage Tank | -7/Recycling Commander-Tank | -7/Scraptown Commander-Executioner | -5/Factory Derelict-Executioner | -5/Waste Derelict-Executioner | -5/Factory Derelict-Executioner | -5/DSF Derelict-Executioner | -4/Factory Scavenger-Executioner | -4/Waste Scavenger-Gunner | -4/Factory Mutant | -4/Upper Caves Mutant | -4/Upper Caves Resources | -11 -10 -10 -10 -9 -8 -7 -7 -7 -7 -7 -7 -5 -5 -5 -5 -4 -4 -4 -4 -4 ----------- Run | Yrd Mat Min Exi Min Mat Fac Was Fac Sto Rec Scr Fac Was Fac DSF Fac Was Fac Upp Upp Matter Collected 6989 | 230 . 142 . 80 1496 96 336 407 35 535 . 760 548 . 392 697 317 444 474 . Remotely . | . . . . . . . . . . . . . . . . . . . . . Salvage Created 8421 | . . 112 . 60 1420 170 324 569 46 402 . 1103 301 . 244 993 836 930 911 . Parts 354 | . . 9 . 18 70 6 4 29 4 8 . 65 1 . 10 58 3 34 35 . Haulers Intercepted 5 | . . . . . 2 . . 1 1 1 . . . . . . . . . . Recyclers Shooed 7 | . . . . . . . . 2 1 1 . 2 . . . 1 . . . . Parts Field Recycled . | . . . . . . . . . . . . . . . . . . . . . Retrieved Matter . | . . . . . . . . . . . . . . . . . . . . . Parts Self-Destructed 35 | . . . . . . . . . . . . . . . . . . . 34 1 Prevented . | . . . . . . . . . . . . . . . . . . . . . Parts Restored . | . . . . . . . . . . . . . . . . . . . . . Kills | -11 -10 -10 -10 -9 -8 -7 -7 -7 -7 -7 -7 -5 -5 -5 -5 -4 -4 -4 -4 -4 ------- Run | Yrd Mat Min Exi Min Mat Fac Was Fac Sto Rec Scr Fac Was Fac DSF Fac Was Fac Upp Upp Combat Hostiles Destroyed 114 | . . 5 . 8 24 1 1 3 . 6 . 16 1 . 1 14 4 15 15 . Melee 5 | . . . . . . . . . . . . . . . . 3 . 1 1 . Guns 54 | . . . . 2 24 . 1 . . 2 . . . . 1 5 . 7 12 . Cannons 24 | . . . . . . . . 2 . 4 . 16 . . . 2 . . . . AOE 26 | . . 5 . 6 . . . 1 . . . . . . . 4 4 6 . . Classes Destroyed 19 | . . 2 . 2 6 . 1 2 . 1 . 2 . . 1 1 . . 1 . Worker 24 | . . . . 1 1 . . 4 . . . 11 . . . 4 . 3 . . Builder 13 | . . . . . 3 . . 3 . . . 2 . . . 4 . 1 . . Tunneler 3 | . . 2 . . . . . . . . . 1 . . . . . . . . Hauler 5 | . . . . . 2 . . 1 1 1 . . . . . . . . . . Recycler 14 | . . . . . 4 1 . 4 . 1 . 2 . . . 1 . 1 . . Mechanic 2 | . . . . . . . . . . . . . . . . 1 . 1 . . Operator 2 | . . . . . . . . 1 1 . . . . . . . . . . . Watcher 5 | . . . . . 2 . . 1 . . . 2 . . . . . . . . Swarmer 17 | . . . . 8 3 . . . . . . . . . . 3 . . 3 . Grunt 52 | . . 5 . . 15 . . . . 1 . 10 . . . 4 . 11 6 . Brawler 4 | . . . . . . . . . . . . 1 . . . . . 2 1 . Duelist 2 | . . . . . . . . . . . . . . . . . . . 2 . Protector 2 | . . . . . . . . . . 1 . . . . . . . 1 . . Sentry 16 | . . . . . 5 1 . 2 . 4 . 2 . . . . . . 2 . Hunter 4 | . . . . . 1 . . . . . . . . . . 2 . 1 . . Programmer 10 | . . . . . . . . 1 . . . 3 . . . 5 . . 1 . Heavy 1 | . . . . . . . . . . . . . . . 1 . . . . . Compactor 6 | . . . . . . . 1 . . . . . 1 . . . 4 . . . Wasp 1 | . . . . . . . . 1 . . . . . . . . . . . . Thug 3 | . . . . . . . . 1 . . . . . . 1 . 1 . . . Martyr 1 | . . . . . . . . . . . . 1 . . . . . . . . Best Kill Streak 11 | . . 4 . 5 7 1 1 5 1 6 . 8 1 . 1 7 2 11 4 . Combat Bots Only 7 | . . 3 . 4 7 1 1 2 . 5 . 3 1 . 1 5 2 7 4 . Max Kills in Single Turn 5 | . . 1 . 3 2 1 1 2 1 1 . 4 1 . 1 5 3 4 1 . Gunslinging 1 | . . . . . 1 . . . . . . . . . . . . . . . Exploded 4 | . . 1 . 3 . . . 1 . . . . . . . 4 2 2 . . Melee 1 | . . . . . . . . . . . . . . . . 1 . 1 1 . Uniques/NPCs Destroyed . | . . . . . . . . . . . . . . . . . . . . . Combat | -11 -10 -10 -10 -9 -8 -7 -7 -7 -7 -7 -7 -5 -5 -5 -5 -4 -4 -4 -4 -4 -------- Run | Yrd Mat Min Exi Min Mat Fac Was Fac Sto Rec Scr Fac Was Fac DSF Fac Was Fac Upp Upp Hostile Shots Fired 998 | . 3 38 . 23 192 3 . 29 . 77 . 238 2 . 21 98 . 58 205 11 Missed 308 | . . 12 . 11 48 1 . 15 . 36 . 83 . . 4 28 . 14 52 4 Hits 690 | . 3 26 . 12 144 2 . 14 . 41 . 155 2 . 17 70 . 44 153 7 Melee 19 | . . . . . . . . . . . . . 2 . . . . 3 14 . Projectile 671 | . 3 26 . 12 144 2 . 14 . 41 . 155 . . 17 70 . 41 139 7 Critical Strikes 31 | . . 1 . . 8 . . . . 1 . 7 . . 2 2 . 2 8 . Actively Blocked 12 | . . . . . . . . . . . . . . . . 2 . 2 8 . Part Disruptions 3 | . . . . . . . . . . . . . . . 3 . . . . . Damage Taken 12402 | . 23 452 . 98 1979 21 60 204 . 444 . 2414 85 . 649 1492 . 1127 3211 143 Core 2497 | . . 139 . 38 351 10 5 6 . 19 . 673 85 . . 89 . 52 887 143 Absorbed by Shields 690 | . . . . . . . . . . . . 690 . . . . . . . . Redirected to Shielding 54 | . . . . . . . . . . . . . . . . . . . 54 . Ignored by Resistances 40 | . . . . . 40 . . . . . . . . . . . . . . . Regen/Repaired (Parts) 1183 | . . . . . . . 82 29 . 59 . 154 259 . 59 . 192 349 . . Core Remaining (%) 56 | 100 . . . 29 36 . . . . . 94 . . . 24 . . . . . Volleys Fired 407 | . . 24 5 9 83 4 22 20 3 14 . 54 8 . 9 38 23 36 55 . Largest 6 | . . 2 1 2 5 3 5 5 5 5 . 6 1 . 6 6 3 4 6 . Hottest 442 | . . 53 33 43 125 165 211 186 186 186 . 248 40 . 228 228 111 326 442 . Shots Fired 1260 | . . 26 5 14 330 12 103 100 15 70 . 148 9 . 54 124 25 70 155 . Gun 912 | . . 16 . 10 330 12 96 40 6 28 . 28 9 . 36 86 2 62 151 . Cannon 294 | . . . . . . . 7 60 9 42 . 112 . . 18 37 3 2 4 . Launcher 45 | . . 10 5 4 . . . . . . . . . . . . 20 6 . . Special 9 | . . . . . . . . . . . . 8 . . . 1 . . . . Kinetic 954 | . . 16 . 10 327 . 49 100 15 70 . 132 1 . 54 119 5 18 38 . Thermal 173 | . . . . . 3 . . . . . . 8 8 . . . . 37 117 . Explosive 45 | . . 10 5 4 . . . . . . . . . . . . 20 6 . . Electromagnetic 79 | . . . . . . 12 54 . . . . . . . . 4 . 9 . . Robot Hit Streak 20 | . . 3 . 3 14 8 12 13 2 6 . 9 7 . 4 4 6 20 14 . Robot Miss Streak 22 | . . 4 . 4 22 . 2 3 1 2 . 9 1 . 6 11 1 3 4 . Penetration Max 1 | . . . . . . . . . . 1 . 1 . . 1 1 . 1 . . Secondary Targets 10 | . . . . . 8 . . . . . . . . . . . . . 2 . Max Gunslinging Chain 1 | . . . . . 1 . . . . . . . . . . . . . 1 . Shots Hit Robots 651 | . . 13 . 4 191 7 68 34 3 35 . 71 8 . 17 49 5 51 95 . Core Hits 335 | . . 15 . 9 78 1 12 24 2 11 . 45 1 . 7 33 13 46 38 . Critical Kills 6 | . . . . . . . . . . . . . . . 2 3 . 1 . . Critical Parts Destroyed 14 | . . . . 1 . . . . . . . . . . 2 7 1 . 3 . Critical Strikes 55 | . . . . 1 1 . . 5 . 5 . 11 . . 5 11 1 8 7 . Burn 9 | . . . . . . . . . . . . . . . . . . 5 4 . Destroy 23 | . . . . 1 1 . . . . . . . . . 5 10 1 2 3 . Blast 21 | . . . . . . . . 5 . 5 . 11 . . . . . . . . Corrupt 1 | . . . . . . . . . . . . . . . . . . 1 . . Sever 1 | . . . . . . . . . . . . . . . . 1 . . . . Melee Attacks 24 | . . . . . . . 1 2 . . . . . . . 8 . 12 1 . Impact . | . . . . . . . . . . . . . . . . . . . . . Slashing 24 | . . . . . . . 1 2 . . . . . . . 8 . 12 1 . Piercing . | . . . . . . . . . . . . . . . . . . . . . Sneak Attacks 2 | . . . . . . . . . . . . . . . . 2 . . . . Combat Hostiles . | . . . . . . . . . . . . . . . . . . . . . Follow-up Attacks . | . . . . . . . . . . . . . . . . . . . . . Damage Inflicted 23107 | . . 651 . 444 3164 124 435 1368 188 1272 . 3560 120 . 753 2279 3160 3012 2577 . Guns 9523 | . . 93 . 67 3164 124 435 277 28 312 . 175 120 . 470 834 25 1008 2391 . Cannons 5752 | . . . . . . . . 1026 160 960 . 2881 . . 283 266 22 18 136 . Explosions 7037 | . . 556 . 377 . . . 65 . . . 504 . . . 719 3113 1703 . . Melee 793 | . . . . . . . . . . . . . . . . 460 . 283 50 . Ramming 2 | . . 2 . . . . . . . . . . . . . . . . . . Kinetic 12103 | . . 93 . 67 3134 . 369 1303 188 1272 . 2850 15 . 753 1052 47 259 701 . Thermal 3374 | . . . . . 30 . . . . . . 439 105 . . 364 . 610 1826 . Explosive 6405 | . . 556 . 377 . . . 65 . . . 236 . . . 355 3113 1703 . . Electromagnetic 430 | . . . . . . 124 66 . . . . 35 . . . 48 . 157 . . Impact . | . . . . . . . . . . . . . . . . . . . . . Slashing 793 | . . . . . . . . . . . . . . . . 460 . 283 50 . Piercing . | . . . . . . . . . . . . . . . . . . . . . Highest Corruption 35 | . . . . . . . . 1 1 1 . 10 10 10 10 . 17 19 35 35 Average Corruption 11 | . . . . . . . . 1 1 1 . 5 10 10 10 . 8 17 25 35 Corruption Purged . | . . . . . . . . . . . . . . . . . . . . . Corruption Blocked . | . . . . . . . . . . . . . . . . . . . . . Effects 194 | . . . . . . . . 3 2 7 . 15 50 1 12 . 7 26 67 4 Message Errors 55 | . . . . . . . . . 1 1 . 5 15 . 2 . 2 5 24 . Matter Fused 47 | . . . . . . . . . . 1 . 6 10 1 3 . 2 8 13 3 Heat Flow Errors 25 | . . . . . . . . 2 . 3 . 1 10 . 1 . 1 2 5 . Energy Discharges 16 | . . . . . . . . . . . . 1 4 . 2 . 2 3 4 . Parts Rejected 3 | . . . . . . . . . . . . 1 . . . . . 2 . . Data Loss (minor) 18 | . . . . . . . . . 1 2 . . 6 . 3 . . 1 5 . Data Loss (major) 9 | . . . . . . . . 1 . . . . . . 1 . . 1 6 . Misfires 5 | . . . . . . . . . . . . 1 1 . . . . . 3 . Alerts 3 | . . . . . . . . . . . . . . . . . . 1 1 1 Misdirections 7 | . . . . . . . . . . . . . 4 . . . . 2 1 . Weapon Failures 6 | . . . . . . . . . . . . . . . . . . 1 5 . Overload Shots . | . . . . . . . . . . . . . . . . . . . . . Overflow Damage 535 | . . 4 . 21 . . . 14 9 88 . 181 . . . 85 94 39 . . Projectiles 202 | . . . . . . . . 14 9 88 . 91 . . . . . . . . Explosions 249 | . . 4 . 21 . . . . . . . 90 . . . 11 94 29 . . Melee 84 | . . . . . . . . . . . . . . . . 74 . 10 . . Knockbacks 32 | . . . . . . . . 3 . 5 . 18 . . 2 4 . . . . Impact . | . . . . . . . . . . . . . . . . . . . . . Kinetic 29 | . . . . . . . . 3 . 5 . 17 . . 1 3 . . . . Secondary 3 | . . . . . . . . . . . . 1 . . 1 1 . . . . Self-Inflicted Damage 170 | . . 68 . . . . . 42 . . . . . . . 60 . . . . Shots 4 | . . 2 . . . . . 1 . . . . . . . 1 . . . . Rammed 2 | . . 2 . . . . . . . . . . . . . . . . . . Targets Rammed 2 | . . 2 . . . . . . . . . . . . . . . . . . Kicked . | . . . . . . . . . . . . . . . . . . . . . Crushed . | . . . . . . . . . . . . . . . . . . . . . Highest Temperature 416 | . . 8 . 8 383 54 126 218 90 198 . 185 248 . 416 353 106 100 355 . Average Temperature 97 | . . 3 . 8 149 22 48 73 47 99 . 61 97 . 125 201 54 57 99 . Received Heat Transfer 2390 | . . 237 . . 1044 12 . 36 . 174 . 368 . . . 9 . 186 288 36 Effects 5 | . . . . . 2 . . . . . . . . . 3 . . . . . Shutdowns 2 | . . . . . 1 . . . . . . . . . 1 . . . . . Energy Bleed 2 | . . . . . 1 . . . . . . . . . 1 . . . . . Short Circuit 1 | . . . . . . . . . . . . . . . 1 . . . . . Siege Activations . | . . . . . . . . . . . . . . . . . . . . . Martial Activations . | . . . . . . . . . . . . . . . . . . . . . Shielding Activations . | . . . . . . . . . . . . . . . . . . . . . Robots Disrupted . | . . . . . . . . . . . . . . . . . . . . . Combat Hostiles . | . . . . . . . . . . . . . . . . . . . . . Robots Corrupted 1 | . . . . . . 1 . . . . . . . . . . . . . . Combat Hostiles 1 | . . . . . . 1 . . . . . . . . . . . . . . Parts Fried . | . . . . . . . . . . . . . . . . . . . . . Impact Corruptions . | . . . . . . . . . . . . . . . . . . . . . Robots Melted 4 | . . . . . . . . . . . . . 1 . . . . 1 2 . Combat Hostiles 4 | . . . . . . . . . . . . . 1 . . . . 1 2 . Parts Melted 16 | . . . . . . . . 1 . 2 . 1 . . . . . 4 8 . Heat Transferred 5654 | . . . . . 74 . . . . . . 372 296 . . 200 . 1453 3259 . Parts Sabotaged . | . . . . . . . . . . . . . . . . . . . . . Parts Stolen . | . . . . . . . . . . . . . . . . . . . . . Parts Stripped . | . . . . . . . . . . . . . . . . . . . . . Power Chain Reactions . | . . . . . . . . . . . . . . . . . . . . . Alert | -11 -10 -10 -10 -9 -8 -7 -7 -7 -7 -7 -7 -5 -5 -5 -5 -4 -4 -4 -4 -4 ------- Run | Yrd Mat Min Exi Min Mat Fac Was Fac Sto Rec Scr Fac Was Fac DSF Fac Was Fac Upp Upp Maximum Alert Level 3 | . . . . . 1 . . 1 . . . 3 1 . 1 1 1 3 . . Low Security (%) 72 | 100 100 100 . 100 36 100 100 94 100 100 . 56 89 100 28 54 23 4 . . Level 1 21 | . . . . . 63 . . 5 . . . 27 10 . 71 45 76 8 . . Level 2 1 | . . . . . . . . . . . . 6 . . . . . 16 . . Level 3 4 | . . . . . . . . . . . . 9 . . . . . 70 . . Level 4 . | . . . . . . . . . . . . . . . . . . . . . Level 5 . | . . . . . . . . . . . . . . . . . . . . . High Security . | . . . . . . . . . . . . . . . . . . . . . Max Security . | . . . . . . . . . . . . . . . . . . . . . Sterilizations 1 | . . . . . . . . . . . . . . . 1 . . . . . Peak Influence 1031 | . . 121 . 174 391 172 47 358 175 103 . 834 260 . 294 317 250 1031 . . Initial 260 | . . . . . 52 172 47 . 157 39 . . 260 . . 154 106 133 . . Average 136 | . . 39 . 117 222 156 2 80 139 26 . 214 45 . 225 134 207 787 . . Influence Increases 6591 | . . 236 . 224 867 35 69 532 54 259 . 1181 40 . 402 579 204 1413 451 45 Destroy 0b10 Robot/C 2840 | . . 100 . 160 540 20 . 140 . 120 . 360 . . 200 280 . 560 360 . Destroy 0b10 Robot/NC 380 | . . 10 . 5 60 5 . 70 10 25 . 90 . . 10 50 . 45 . . Destroy Leader 538 | . . 30 . 20 128 10 . 54 2 . . 84 . . 30 50 . 100 30 . Allied During Kill 816 | . . . . 10 16 . . 165 5 56 . 57 . . 162 . . 329 16 . Disable Machine 705 | . . . . . 30 . . 30 30 30 . 405 . . . 90 . 90 . . Anti-Garrison Action 150 | . . . . . . . . . . . . . . . . . . 150 . . Destroy Structure 847 | . . 66 . 29 3 . 69 73 7 28 . 170 40 . . 94 204 64 . . Lose Combat Pursuer 315 | . . 30 . . 90 . . . . . . 15 . . . 15 . 75 45 45 Influence Decreases 6341 | . . 174 62 90 622 277 206 186 299 351 9 436 785 . 108 570 317 615 1147 87 Entered New Map 2004 | . . . 62 . 82 207 90 . 189 62 9 . 485 . . 140 197 57 367 57 Time Decay 3024 | . . 164 . 70 380 70 88 186 110 252 . 276 210 . . 360 120 238 470 30 Lost Part 675 | . . 10 . 20 120 . 7 . . . . 90 10 . 18 70 . 60 270 . Lost Ally 638 | . . . . . 40 . 21 . . 37 . 70 80 . 90 . . 260 40 . Squads Dispatched 24 | . 1 . . . 2 . . 2 1 . . 5 . . 2 3 . 8 . . Investigation 2 | . . . . . . . . . . . . . . . . . . 2 . . Extermination 8 | . . . . . . . . 2 1 . . 2 . . . 3 . . . . Reinforcement 10 | . 1 . . . 1 . . . . . . 3 . . 2 . . 3 . . Assault 2 | . . . . . . . . . . . . . . . . . . 2 . . Garrison 2 | . . . . . 1 . . . . . . . . . . . . 1 . . Intercept . | . . . . . . . . . . . . . . . . . . . . . Searches Triggered . | . . . . . . . . . . . . . . . . . . . . . Construction Impeded 3 | . . . . . . . . . . . . 2 . . . . . 1 . . Haulers Reinforced . | . . . . . . . . . . . . . . . . . . . . . Active Scanning Responses . | . . . . . . . . . . . . . . . . . . . . . Cargo Convoy Interrupts . | . . . . . . . . . . . . . . . . . . . . . Stealth | -11 -10 -10 -10 -9 -8 -7 -7 -7 -7 -7 -7 -5 -5 -5 -5 -4 -4 -4 -4 -4 --------- Run | Yrd Mat Min Exi Min Mat Fac Was Fac Sto Rec Scr Fac Was Fac DSF Fac Was Fac Upp Upp Distress Signals 6 | . . . . . 3 . . . . . . 3 . . . . . . . . Communications Jammed . | . . . . . . . . . . . . . . . . . . . . . Distress Signals . | . . . . . . . . . . . . . . . . . . . . . Times Spotted 207 | . 3 7 . 8 36 1 6 7 . 6 . 29 7 . 8 27 6 32 20 4 Peak Tracking Total 11 | . 3 3 . 4 11 1 2 1 . 4 . 9 5 . 5 6 4 7 8 3 Tactical Retreats 15 | . . 1 . . 4 . . . . . . 1 1 . . 1 1 2 3 1 Traps | -11 -10 -10 -10 -9 -8 -7 -7 -7 -7 -7 -7 -5 -5 -5 -5 -4 -4 -4 -4 -4 ------- Run | Yrd Mat Min Exi Min Mat Fac Was Fac Sto Rec Scr Fac Was Fac DSF Fac Was Fac Upp Upp Traps Triggered 10 | . . . . . . 1 . . . . . 4 . . 1 4 . . . . Indirectly . | . . . . . . . . . . . . . . . . . . . . . Trap Hack Attempts . | . . . . . . . . . . . . . . . . . . . . . Triggered . | . . . . . . . . . . . . . . . . . . . . . Disarmed . | . . . . . . . . . . . . . . . . . . . . . Reprogrammed . | . . . . . . . . . . . . . . . . . . . . . Reused . | . . . . . . . . . . . . . . . . . . . . . Traps Extracted . | . . . . . . . . . . . . . . . . . . . . . Installed . | . . . . . . . . . . . . . . . . . . . . . Triggered . | . . . . . . . . . . . . . . . . . . . . . Machines | -11 -10 -10 -10 -9 -8 -7 -7 -7 -7 -7 -7 -5 -5 -5 -5 -4 -4 -4 -4 -4 ---------- Run | Yrd Mat Min Exi Min Mat Fac Was Fac Sto Rec Scr Fac Was Fac DSF Fac Was Fac Upp Upp Machines Disabled 49 | . . . 1 . 2 . . 2 2 2 . 27 . . . 6 . 7 . . Max in Single Turn 15 | . . . 1 . 1 . . 1 1 1 . 15 . . . 4 . 1 . . Garrison Access 1 | . . . . . . . . . . . . . . . . . . 1 . . Machines Repaired . | . . . . . . . . . . . . . . . . . . . . . Machines Dismantled . | . . . . . . . . . . . . . . . . . . . . . Machines Sabotaged . | . . . . . . . . . . . . . . . . . . . . . Overloaded Fab Kills . | . . . . . . . . . . . . . . . . . . . . . Hacking | -11 -10 -10 -10 -9 -8 -7 -7 -7 -7 -7 -7 -5 -5 -5 -5 -4 -4 -4 -4 -4 --------- Run | Yrd Mat Min Exi Min Mat Fac Was Fac Sto Rec Scr Fac Was Fac DSF Fac Was Fac Upp Upp Machines Accessed 15 | . . . 3 . 1 1 . 2 1 . 2 1 . 1 . 1 . 2 . . Terminals 5 | . . . . . . . . 1 1 . . . . 1 . 1 . 1 . . Fabricators 3 | . . . . . . 1 . 1 . . . 1 . . . . . . . . Repair Stations . | . . . . . . . . . . . . . . . . . . . . . Recycling Units . | . . . . . . . . . . . . . . . . . . . . . Scanalyzers 1 | . . . . . 1 . . . . . . . . . . . . . . . Garrison Access 1 | . . . . . . . . . . . . . . . . . . 1 . . Total Hacks 26 | . . . 3 . 1 1 . 5 1 . 9 1 . 1 . 1 . 3 . . Successful 18 | . . . 3 . 1 1 . 1 . . 9 1 . 1 . 1 . . . . Failed 8 | . . . . . . . . 4 1 . . . . . . . . 3 . . Catastrophic 2 | . . . . . . . . 1 . . . . . . . . . 1 . . Database Lockouts . | . . . . . . . . . . . . . . . . . . . . . Manual 5 | . . . . . . . . 3 2 . . . . . . . . . . . Terminals 7 | . . . . . . . . 3 1 . . . . 1 . 1 . 1 . . Fabricators 4 | . . . . . . 1 . 2 . . . 1 . . . . . . . . Repair Stations . | . . . . . . . . . . . . . . . . . . . . . Recycling Units . | . . . . . . . . . . . . . . . . . . . . . Scanalyzers 1 | . . . . . 1 . . . . . . . . . . . . . . . Garrison Access 2 | . . . . . . . . . . . . . . . . . . 2 . . Terminal Hacks 14 | . . . 3 . . . . . . . 9 . . 1 . 1 . . . . Record 12 | . . . 3 . . . . . . . 9 . . . . . . . . . Open DSF 2 | . . . . . . . . . . . . . . 1 . 1 . . . . Fabricator Hacks 3 | . . . . . . 1 . 1 . . . 1 . . . . . . . . Network Status 3 | . . . . . . 1 . 1 . . . 1 . . . . . . . . Repair Station Hacks . | . . . . . . . . . . . . . . . . . . . . . Recycling Unit Hacks . | . . . . . . . . . . . . . . . . . . . . . Scanalyzer 1 | . . . . . 1 . . . . . . . . . . . . . . . Retrieve Study 1 | . . . . . 1 . . . . . . . . . . . . . . . Garrison Access Hacks . | . . . . . . . . . . . . . . . . . . . . . Unauthorized Hacks . | . . . . . . . . . . . . . . . . . . . . . Terminals . | . . . . . . . . . . . . . . . . . . . . . Fabricators . | . . . . . . . . . . . . . . . . . . . . . Repair Stations . | . . . . . . . . . . . . . . . . . . . . . Recycling Units . | . . . . . . . . . . . . . . . . . . . . . Scanalyzers . | . . . . . . . . . . . . . . . . . . . . . Garrison Access . | . . . . . . . . . . . . . . . . . . . . . Data Cores Recovered 1 | . . . . . . . . . 1 . . . . . . . . . . . Used . | . . . . . . . . . . . . . . . . . . . . . Hacking Detections 6 | . . . . . . 1 . 1 2 . . . . . . . . 2 . . Full Trace Events 1 | . . . . . . . . . . . . . . . . . . 1 . . Feedback Events . | . . . . . . . . . . . . . . . . . . . . . Feedback Blocked . | . . . . . . . . . . . . . . . . . . . . . Robot Schematics Acquired . | . . . . . . . . . . . . . . . . . . . . . Robots Built . | . . . . . . . . . . . . . . . . . . . . . Authchips . | . . . . . . . . . . . . . . . . . . . . . Time . | . . . . . . . . . . . . . . . . . . . . . Total Robot Build Rating . | . . . . . . . . . . . . . . . . . . . . . Part Schematics Acquired . | . . . . . . . . . . . . . . . . . . . . . Parts Built . | . . . . . . . . . . . . . . . . . . . . . Authchips . | . . . . . . . . . . . . . . . . . . . . . Time . | . . . . . . . . . . . . . . . . . . . . . Total Part Build Rating . | . . . . . . . . . . . . . . . . . . . . . Part Studies Acquired 1 | . . . . . 1 . . . . . . . . . . . . . . . Parts Repaired . | . . . . . . . . . . . . . . . . . . . . . Time . | . . . . . . . . . . . . . . . . . . . . . Parts Recycled . | . . . . . . . . . . . . . . . . . . . . . Recycled Matter . | . . . . . . . . . . . . . . . . . . . . . Retrieved Matter . | . . . . . . . . . . . . . . . . . . . . . Retrieved Components . | . . . . . . . . . . . . . . . . . . . . . Parts Scanalyzed . | . . . . . . . . . . . . . . . . . . . . . Part Schematics Acquired . | . . . . . . . . . . . . . . . . . . . . . Parts Damaged . | . . . . . . . . . . . . . . . . . . . . . Bothacking | -11 -10 -10 -10 -9 -8 -7 -7 -7 -7 -7 -7 -5 -5 -5 -5 -4 -4 -4 -4 -4 ------------ Run | Yrd Mat Min Exi Min Mat Fac Was Fac Sto Rec Scr Fac Was Fac DSF Fac Was Fac Upp Upp Used RIF Installer . | . . . . . . . . . . . . . . . . . . . . . Robots Hacked 6 | . . . . . . . . . . . . 5 . . . 1 . . . . Non-combat 6 | . . . . . . . . . . . . 5 . . . 1 . . . . Combat . | . . . . . . . . . . . . . . . . . . . . . Robot Hacks Applied 7 | . . . . . . . . . . . . 6 . . . 1 . . . . find_chute 7 | . . . . . . . . . . . . 6 . . . 1 . . . . Relay Couplers Released 1 | . . . . . . . . . . . . . . . . . . 1 . . Machine Destruction 1 | . . . . . . . . . . . . . . . . . . 1 . . Fabnet Peak Effective % . | . . . . . . . . . . . . . . . . . . . . . Robots Rewired 8 | . . . . . . . . . . 6 . . . . . . . . 2 . Allies Hacked 3 | . . . . . . . . . . . . 2 . . . . . 1 . . Hacks Repelled . | . . . . . . . . . . . . . . . . . . . . . Allies | -11 -10 -10 -10 -9 -8 -7 -7 -7 -7 -7 -7 -5 -5 -5 -5 -4 -4 -4 -4 -4 -------- Run | Yrd Mat Min Exi Min Mat Fac Was Fac Sto Rec Scr Fac Was Fac DSF Fac Was Fac Upp Upp Total Allies 67 | . . . . 2 . . 18 . . 6 . . 19 . . . 20 . 2 . Largest Group 19 | . . . . 2 2 . 18 9 7 11 11 11 19 11 10 . 19 17 2 . Highest-Rated Group 702 | . . . . 43 43 . 434 262 208 262 262 259 702 431 385 . 684 626 98 . Highest-Rated Ally 50 | . . . . 31 31 . 35 35 31 40 40 40 50 46 46 . 50 50 49 . Initial UFD Resources 41 | . . . . . . . . . . . . 37 37 37 37 41 41 41 41 41 Total Orders . | . . . . . . . . . . . . . . . . . . . . . Ally Attacks 510 | . . . . 2 24 . 138 18 . 22 . 10 72 . 73 . 28 116 7 . Total Damage 14242 | . . . . 42 365 . 3603 379 . 392 . 201 3433 . 1656 . 397 3551 223 . Kills 63 | . . . . . 3 . 10 4 . 1 . 2 8 . 11 . 2 19 3 . Allies Corrupted . | . . . . . . . . . . . . . . . . . . . . . Allies Melted . | . . . . . . . . . . . . . . . . . . . . . Intel | -11 -10 -10 -10 -9 -8 -7 -7 -7 -7 -7 -7 -5 -5 -5 -5 -4 -4 -4 -4 -4 ------- Run | Yrd Mat Min Exi Min Mat Fac Was Fac Sto Rec Scr Fac Was Fac DSF Fac Was Fac Upp Upp Active Infowar (turns) 2528 | . . . . . . . . . . . . . 987 102 311 1128 . . . . Sensors 2528 | . . . . . . . . . . . . . 987 102 311 1128 . . . . Robot Analysis Total . | . . . . . . . . . . . . . . . . . . . . . Derelict Logs Recovered 1 | . . 1 . . . . . . . . . . . . . . . . . . Drone Launches . | . . . . . . . . . . . . . . . . . . . . . Drone Recoveries . | . . . . . . . . . . . . . . . . . . . . . Exploration | -11 -10 -10 -10 -9 -8 -7 -7 -7 -7 -7 -7 -5 -5 -5 -5 -4 -4 -4 -4 -4 ------------- Run | Yrd Mat Min Exi Min Mat Fac Was Fac Sto Rec Scr Fac Was Fac DSF Fac Was Fac Upp Upp Turns Passed 13204 | 42 20 486 270 140 899 143 1255 862 235 1058 1592 975 1291 102 311 1518 246 501 1187 71 Spaces Moved 7746 | 37 13 486 386 111 472 101 668 452 134 531 958 432 872 46 144 687 193 302 603 118 Core 1052 | 20 . 187 . 22 81 . . . . . . 77 366 . . . . . 299 . Treads 2980 | 17 13 54 . . . . 272 452 134 531 958 355 179 15 . . . . . . Legs 2529 | . . . . . 120 101 396 . . . . . 327 31 144 687 193 302 228 . Wheels . | . . . . . . . . . . . . . . . . . . . . . Hover 1185 | . . 245 386 89 271 . . . . . . . . . . . . . 76 118 Flight . | . . . . . . . . . . . . . . . . . . . . . Fastest Speed 50 | 50 160 50 60 60 50 120 120 160 160 160 160 50 50 170 170 90 90 90 50 60 Average Speed 138 | 100 160 85 60 67 116 120 170 160 160 160 160 182 124 197 177 177 90 108 138 60 Slowest Speed 450 | 160 160 160 60 100 180 120 190 160 160 160 160 240 240 320 220 180 90 185 450 60 Overloaded Moves . | . . . . . . . . . . . . . . . . . . . . . Propulsion Burnouts . | . . . . . . . . . . . . . . . . . . . . . Robots Hopped 1 | . . . . . . . . . . . . . . . 1 . . . . . Potential Cave-ins . | . . . . . . . . . . . . . . . . . . . . . Cave-ins Triggered . | . . . . . . . . . . . . . . . . . . . . . Exploration Rate (%) 46 | 4 5 84 85 47 40 4 97 16 23 92 79 21 96 2 93 20 87 7 50 30 Regions Visited 20 Branch Regions 8 Pre-discovered Areas 3 | . . 1 . . . . . . . . 2 . . . . . . . . . Known Exits Taken 1 | . . . . . . . . . . . . . . 1 . . . . . . Unknown Exits Taken 12 | 1 1 1 1 1 1 . . 1 1 1 1 . . . . . . 1 1 . Scrap Searched 11 | . . 3 . 1 . . . . . . 5 . . . . . . . 2 . Spaces Dug 3 | . . . . . . . 1 2 . . . . . . . . . . . . Terrain Destroyed 586 | . . 97 25 41 . . 1 49 6 23 . 82 . . 1 45 198 1 17 . Melee 3 | . . . . . . . 1 2 . . . . . . . . . . . . Projectile 123 | . . . . . . . . 21 6 23 . 39 . . 1 15 1 . 17 . AOE 460 | . . 97 25 41 . . . 26 . . . 43 . . . 30 197 1 . . Terrain Rammed . | . . . . . . . . . . . . . . . . . . . . . Walls Destroyed . | . . . . . . . . . . . . . . . . . . . . . Machines Disabled . | . . . . . . . . . . . . . . . . . . . . . Actions | -11 -10 -10 -10 -9 -8 -7 -7 -7 -7 -7 -7 -5 -5 -5 -5 -4 -4 -4 -4 -4 --------- Run | Yrd Mat Min Exi Min Mat Fac Was Fac Sto Rec Scr Fac Was Fac DSF Fac Was Fac Upp Upp Total 9409 | 42 12 527 419 163 638 112 730 533 146 701 1019 519 1072 58 179 920 252 409 840 118 Wait 770 | . . 5 27 40 23 . 10 41 8 39 56 7 146 6 17 148 34 37 126 . Move 7727 | 36 12 485 385 110 471 101 667 451 133 530 957 432 871 45 141 687 192 301 602 118 Hop 1 | . . . . . . . . . . . . . . . 1 . . . . . Pick Up 60 | 3 . 4 . 2 28 1 . 1 . . 3 . 7 1 1 3 2 1 3 . Fast Attach 99 | . . . . . 1 3 14 7 1 . . 10 13 3 6 15 . 12 14 . Attach 57 | 3 . 4 1 2 25 . . . . . . 1 10 . . 2 1 1 7 . Detach 14 | . . 1 1 . . . 1 . . . . 1 4 . . . . . 6 . Swap 24 | . . . . . 1 1 1 2 . . . 3 1 . 1 6 . 5 3 . Drop 87 | . . 2 . . 6 2 14 9 1 . 3 11 12 3 3 13 . 4 4 . Fire 407 | . . 24 5 9 83 4 22 20 3 14 . 54 8 . 9 38 23 36 55 . Melee 24 | . . . . . . . 1 2 . . . . . . . 8 . 12 1 . Ram . | . . . . . . . . . . . . . . . . . . . . . Kick . | . . . . . . . . . . . . . . . . . . . . . Crush 2 | . . 2 . . . . . . . . . . . . . . . . . . Escape Stasis . | . . . . . . . . . . . . . . . . . . . . . Rewire 137 | . . . . . . . . . . 118 . . . . . . . . 19 . Trap . | . . . . . . . . . . . . . . . . . . . . . Miscellaneous . | . . . . . . . . . . . . . . . . . . . . . Route ------- -11/Scrapyard -10/Materials -10/Mines (discovered 3 exits: [*Mat x2] / *Exi) -10/Exiles -9/Mines -8/Materials -7/Factory -7/Waste -7/Factory (discovered 2 exits: [*Fac] / *Sto) -7/Storage -7/Recycling (discovered 2 exits: *Fac / *Scr) -7/Scraptown -5/Factory -5/Waste -5/Factory -5/DSF -4/Factory -4/Waste -4/Factory -4/Upper Caves -4/Upper Caves History --------- Turn | Location | Event 8 | -11/Scrapyard | Discovered new exit (range 15) 43 | -11/Scrapyard | Entered Materials 47 | -10/Materials | Discovered new exit (range 10) 63 | -10/Materials | Entered Mines 156 | -10/Mines | Received a Rocket Launcher from a helpful Derelict 204 | -10/Mines | Core integrity fell below 50% 304 | -10/Mines | Discovered new exit (range 13) 305 | -10/Mines | Build established: Mutant 489 | -10/Mines | Discovered new exit (range 8) 537 | -10/Mines | Found a damaged Exp. Sensor Array with a note attached 538 | -10/Mines | Found Prototype Device 546 | -10/Mines | Deemed a non-threat by the Exiles lab entrance 546 | -10/Mines | Discovered new exit (range 5) 549 | -10/Mines | Entered Exiles 549 | -10/Exiles | Found Exiles lab abandoned 811 | -10/Exiles | Discovered new exit (range 14) 819 | -10/Exiles | Entered Mines 905 | -9/Mines | Discovered new exit (range 13) 959 | -9/Mines | Entered Materials 959 | -8/Materials | Accompanied by 2 allies 959 | -8/Materials | Evolved 4 slots: Utility x1, Weapon x3 964 | -8/Materials | Led the pair of lost Derelicts to an unsafe place 1351 | -8/Materials | Destroyed 7 combat bots 1353 | -8/Materials | Lost 3 parts (1n1u1w) 1432 | -8/Materials | Lost 4 parts (1p3w) 1725 | -8/Materials | Core integrity fell below 50% 1787 | -8/Materials | Garrison activated, responded to threat 1838 | -8/Materials | Discovered new exit (range 9) 1858 | -8/Materials | Entered Factory 1858 | -7/Factory | Evolved 2 slots: Utility x2 1970 | -7/Factory | Build established: Scavenger-Gunner 2001 | -7/Factory | Manually triggered Chute Trap 2001 | -7/Factory | Sucked down chute 2001 | -7/Factory | Entered Waste 2011 | -7/Waste | Spotted C-40 Crusher 2092 | -7/Waste | Spotted C-40 Crusher 2102 | -7/Waste | Warlord forces began an assault 2109 | -7/Waste | Allies destroyed C-40 Crusher 2113 | -7/Waste | Allies destroyed C-40 Crusher 2136 | -7/Waste | Spotted C-40 Crusher 2140 | -7/Waste | Lost 3 allies 2143 | -7/Waste | Destroyed C-40 Crusher 2169 | -7/Waste | Spotted C-40 Crusher 2172 | -7/Waste | Allies destroyed C-40 Crusher 2174 | -7/Waste | Lost 3 allies 2207 | -7/Waste | Spotted C-40 Crusher 2219 | -7/Waste | Allies destroyed C-40 Crusher 2222 | -7/Waste | Spotted C-40 Crusher 2233 | -7/Waste | Allies destroyed C-40 Crusher 2264 | -7/Waste | Lost 3 allies 2337 | -7/Waste | Discovered new exit (range 16) 3035 | -7/Waste | Build established: Derelict-Tank 3256 | -7/Waste | Entered Factory 3256 | -7/Factory | Accompanied by 9 allies 3611 | -7/Factory | Discovered new exit (range 9) 4045 | -7/Factory | Build established: Tank 4065 | -7/Factory | Discovered new exit (range 12) 4118 | -7/Factory | Entered Storage 4118 | -7/Storage | Accompanied by 7 allies 4336 | -7/Storage | Used back door to open Recycling access 4336 | -7/Storage | Discovered new exit (range 4) 4353 | -7/Storage | Entered Recycling 4353 | -7/Recycling | Accompanied by 7 allies 4549 | -7/Recycling | Discovered new exit (range 16) 5357 | -7/Recycling | Scanned before Scraplab entrance 5379 | -7/Recycling | Entered Scraplab 5392 | -7/Recycling | Discovered new exit (range 2) 5411 | -7/Recycling | Entered Scraptown 5411 | -7/Scraptown | Accompanied by 11 allies 5411 | -7/Scraptown | System corruption cleaned by C-Scrubber 5547 | -7/Scraptown | Build established: Commander-Tank 5605 | -7/Scraptown | Visited Comm Corps 5642 | -7/Scraptown | Visited UFD Registry 5642 | -7/Scraptown | Registered with UFD as "Chainframe" 5712 | -7/Scraptown | Visited The Evicted 5760 | -7/Scraptown | Visited Cave Peace 5802 | -7/Scraptown | Visited Scrapoid Research Area 5818 | -7/Scraptown | Visited TADAMA 5832 | -7/Scraptown | Visited Cyclists 5845 | -7/Scraptown | Entered Cyclist Reading Room 5850 | -7/Scraptown | Learned location of Zion (-7) 6058 | -7/Scraptown | Heard Great Nut preacher, LISTEN AND RECITE! 6280 | -7/Scraptown | Visited LU-1G1's Boring Crew 6339 | -7/Scraptown | Visited Abandonware Association 6384 | -7/Scraptown | Visited Scrapoid Pod Storage 6413 | -7/Scraptown | Visited Research Penetration Think Tank 6434 | -7/Scraptown | Visited Junk Repository 6467 | -7/Scraptown | Visited Infowarlord's Domain 6467 | -7/Scraptown | Identified Exp. Sensor Array 6509 | -7/Scraptown | Visited Chapter 10 6589 | -7/Scraptown | Visited DA-N13 Charitable Foundation 6605 | -7/Scraptown | Found DCF Scrap (30 items) 6850 | -7/Scraptown | Met Optimus 6850 | -7/Scraptown | Accepted into 0bPrime 6931 | -7/Scraptown | Discovered new exit (range 5) 7003 | -7/Scraptown | Entered Factory 7003 | -5/Factory | Accompanied by 11 allies 7003 | -5/Factory | Evolved 4 slots: Power x1, Propulsion x1, Utility x1, Weapon x1 7241 | -5/Factory | Lost 3 allies 7307 | -5/Factory | Build established: Commander-Executioner 7414 | -5/Factory | P-70 Sage assimilated allied Guardian 4a 7476 | -5/Factory | Lost 3 allies 7803 | -5/Factory | Build established: Scavenger-Executioner 7907 | -5/Factory | P-70 Sage assimilated allied Angel 4a 7920 | -5/Factory | System corruption reached 10% 7958 | -5/Factory | Core integrity fell below 50% 7978 | -5/Factory | Manually triggered Chute Trap 7978 | -5/Factory | Sucked down chute 7978 | -5/Factory | Entered Waste 7994 | -5/Waste | Lost 9 parts (1p1n5u2w) 7994 | -5/Waste | Spotted C-40 Crusher 8005 | -5/Waste | Spotted C-40 Crusher 8015 | -5/Waste | Spotted C-40 Crusher 8056 | -5/Waste | Found Prototype Processor 8056 | -5/Waste | Identified Exp. Armor Integrity Analyzer 8095 | -5/Waste | Spotted C-40 Crusher 8111 | -5/Waste | Spotted C-40 Crusher 8175 | -5/Waste | Spotted C-40 Crusher 8185 | -5/Waste | Crushed by Compactor (1 part destroyed, 2 dropped) 8221 | -5/Waste | Warlord forces began an assault 8250 | -5/Waste | Allies destroyed C-40 Crusher 8251 | -5/Waste | Build established: Mutant 8252 | -5/Waste | Allies destroyed C-40 Crusher 8253 | -5/Waste | Allies destroyed C-40 Crusher 8263 | -5/Waste | Destroyed C-40 Crusher 8278 | -5/Waste | Allies destroyed C-40 Crusher 8303 | -5/Waste | Lost 8 allies 8335 | -5/Waste | Found Adv. Powered Armor 8593 | -5/Waste | Discovered new exit (range 11) 8601 | -5/Waste | Found Broken Adv. Powered Armor 8830 | -5/Waste | Build established: Derelict-Executioner 9269 | -5/Waste | Entered Factory 9269 | -5/Factory | Accompanied by 11 allies 9366 | -5/Factory | Identified exit to DSF 9371 | -5/Factory | Entered DSF 9371 | -5/DSF | Accompanied by 11 allies 9391 | -5/DSF | Additional patrols routed to DSF 9479 | -5/DSF | Sterilization system engaged 9499 | -5/DSF | Ambient heat levels rising (+10) 9501 | -5/DSF | Discovered new exit (range 16) 9514 | -5/DSF | Ambient heat levels rising (+10) 9516 | -5/DSF | Lost 3 allies 9529 | -5/DSF | Ambient heat levels rising (+10) 9544 | -5/DSF | Ambient heat levels rising (+10) 9559 | -5/DSF | Ambient heat levels rising (+10) 9574 | -5/DSF | Ambient heat levels rising (+10) 9589 | -5/DSF | Ambient heat levels rising (+10) 9604 | -5/DSF | Ambient heat levels rising (+10) 9619 | -5/DSF | Ambient heat levels rising (+10) 9634 | -5/DSF | Ambient heat levels rising (+10) 9649 | -5/DSF | Ambient heat levels rising (+10) 9664 | -5/DSF | Ambient heat levels rising (+10) 9679 | -5/DSF | Ambient heat levels rising (+10) 9682 | -5/DSF | Entered Factory 9682 | -4/Factory | Evolved 2 slots: Utility x2 9695 | -4/Factory | Lost 5 allies 10596 | -4/Factory | Found Prototype Launcher 10596 | -4/Factory | Identified Smartbomb Launcher 11139 | -4/Factory | Build established: Scavenger-Executioner 11200 | -4/Factory | Sucked down chute 11200 | -4/Factory | Entered Waste 11201 | -4/Waste | Met a frightened Derelict 11204 | -4/Waste | Spotted C-40 Crusher 11210 | -4/Waste | Allies destroyed C-40 Crusher 11215 | -4/Waste | EMP discharged 11224 | -4/Waste | Lost 6 parts (1p1u4w) 11228 | -4/Waste | Spotted C-40 Crusher 11230 | -4/Waste | Destroyed C-40 Crusher 11241 | -4/Waste | Spotted C-40 Crusher 11247 | -4/Waste | Spotted C-40 Crusher 11253 | -4/Waste | Destroyed C-40 Crusher 11253 | -4/Waste | Destroyed C-40 Crusher 11256 | -4/Waste | Spotted C-40 Crusher 11277 | -4/Waste | Spotted C-40 Crusher 11282 | -4/Waste | Destroyed C-40 Crusher 11315 | -4/Waste | EMP discharged 11315 | -4/Waste | System corruption reached 10% 11329 | -4/Waste | Met Warlord forces unprepared to attack 11350 | -4/Waste | Allies destroyed C-40 Crusher 11408 | -4/Waste | Discovered new exit (range 13) 11415 | -4/Waste | EMP discharged 11446 | -4/Waste | Entered Factory 11446 | -4/Factory | Accompanied by 17 allies 11462 | -4/Factory | Garrison activated, responded to threat 11526 | -4/Factory | Lost 6 allies 11644 | -4/Factory | Lost 7 allies 11695 | -4/Factory | Destroyed 7 combat bots 11715 | -4/Factory | Lost 3 allies 11720 | -4/Factory | Discovered new exit (range 4) 11947 | -4/Factory | Entered Upper Caves 11961 | -4/Upper Caves | Attracted the attention of an 0b10 checkpoint 11971 | -4/Upper Caves | Attracted the attention of an 0b10 outpost 12095 | -4/Upper Caves | Lost 3 parts (1n1u1w) 12447 | -4/Upper Caves | Lost 9 parts (1n5u3w) 12579 | -4/Upper Caves | Spotted B-86 Titan 12602 | -4/Upper Caves | Core integrity fell below 50% 12639 | -4/Upper Caves | Lost 9 parts (2p1n2u4w) 12728 | -4/Upper Caves | Lost 3 parts (3u) 12899 | -4/Upper Caves | Build established: Mutant 12901 | -4/Upper Caves | System corruption reached 30% 12906 | -4/Upper Caves | Core integrity fell below 20% 13099 | -4/Upper Caves | Discovered new exit (range 5) 13134 | -4/Upper Caves | Entered another Upper Caves area 13205 | -4/Upper Caves | Destroyed by Y-64 Sentinel with Wave Gun Last Messages --------------- Acquired Antigrav System. Mic. Fission Core fries itself beyond repair. Tesla Rifle fries itself beyond repair. Acquired Antigrav System. Imp. Remote Datajack fries itself beyond repair. Imp. Heat Sink fries itself beyond repair. System corrupted: Component data lost. Acquired 27 matter. KSDWGDF5AGEFL>PTP9I AIYEOUOJG0H NOI System corrupted: Matter fused (-7). EXIT=FOUND Acquired 14 matter. A